fUSD/lending_fUSD_20240817
["ID","MTS","AMOUNT","RATE_DAILY","PERIOD"]
[335159918,1723895439895,-500.0,0.00010999,2]
[335159919,1723895439906,-500.0,0.00010999,2]
[335159920,1723895439916,-500.0,0.00010999,2]
[335159921,1723895439925,-500.0,0.00010999,2]
[335159922,1723895439937,-500.0,0.00010999,2]
[335159923,1723895439947,-500.0,0.00010999,2]
[335159924,1723895439957,-500.0,0.00010999,2]
[335159925,1723895439967,-500.0,0.00010999,2]
[335159926,1723895439976,-178.45385752,0.00010999,2]
[335159928,1723895439987,-1277.29,0.00010999,2]
[335159930,1723895439997,-500.0,0.00010999,2]
[335159932,1723895440007,-1277.29,0.00010999,2]
[335159934,1723895440017,-500.0,0.00010999,2]
[335159936,1723895440027,-1277.29,0.00010999,2]
[335159937,1723895440036,-500.0,0.00010999,2]
[335159938,1723895440047,-1277.29,0.00010999,2]
[335159939,1723895440057,-500.0,0.00010999,2]
[335159940,1723895440067,-500.0,0.00010999,2]
[335159941,1723895440076,-500.0,0.00010999,2]
[335159942,1723895440085,-1277.29,0.00010999,2]
[335159943,1723895440095,-500.0,0.00010999,2]
[335159944,1723895440105,-1277.29,0.00010999,2]
[335159945,1723895440114,-500.0,0.00010999,2]
[335159946,1723895440124,-1277.29,0.00010999,2]
[335159947,1723895440134,-605.65192392,0.00010999,2]
[335159948,1723895440143,-1277.29,0.00010999,2]
[335159949,1723895440152,-1277.29,0.00010999,2]
[335159950,1723895440162,-1277.29,0.00010999,2]
[335159951,1723895440171,-1277.29,0.00010999,2]
[335159952,1723895440181,-1277.29,0.00010999,2]
[335159953,1723895440192,-1277.29,0.00010999,2]
[335159954,1723895440203,-1277.29,0.00010999,2]
[335159955,1723895440213,-1277.29,0.00010999,2]
[335159956,1723895440223,-1277.29,0.00010999,2]
[335159957,1723895440233,-1277.29,0.00010999,2]
[335159958,1723895440245,-1277.29,0.00010999,2]
[335159959,1723895440255,-1277.29,0.00010999,2]
[335159960,1723895440265,-1277.29,0.00010999,2]
[335159961,1723895440274,-1277.36411172,0.00010999,2]
[335159962,1723895440284,-1167.41,0.00010999,2]
[335159963,1723895440295,-197.724584,0.00010999,2]
[335159964,1723895440305,-500.0,0.00010999,2]
[335159965,1723895440314,-500.0,0.00010999,2]
[335159966,1723895440324,-500.0,0.00010999,2]
[335159967,1723895440333,-500.0,0.00010999,2]
[335159968,1723895440344,-500.0,0.00010999,2]
[335159969,1723895440354,-500.0,0.00010999,2]
[335159970,1723895440363,-500.0,0.00010999,2]
[335159971,1723895440372,-500.0,0.00010999,2]
[335159972,1723895440381,-500.0,0.00010999,2]
[335159973,1723895440390,-500.0,0.00010999,2]
[335159974,1723895440399,-500.0,0.00010999,2]
[335159975,1723895440408,-500.0,0.00010999,2]
[335159976,1723895440417,-500.0,0.00010999,2]
[335159977,1723895440426,-500.0,0.00010999,2]
[335159978,1723895440435,-500.0,0.00010999,2]
[335159979,1723895440444,-500.0,0.00010999,2]
[335159980,1723895440454,-540.52176874,0.00010999,2]
[335159981,1723895440463,-1201.75,0.00010999,2]
[335159982,1723895440472,-1201.75,0.00010999,2]
[335159983,1723895440482,-1201.75,0.00010999,2]
[335159984,1723895440491,-1201.75,0.00010999,2]
[335159985,1723895440501,-1201.75,0.00010999,2]
[335159986,1723895440510,-1201.75,0.00010999,2]
[335159987,1723895440520,-1201.75,0.00010999,2]
[335159988,1723895440529,-1201.75,0.00010999,2]
[335159989,1723895440539,-1201.75,0.00010999,2]
[335159990,1723895440548,-1201.75,0.00010999,2]
[335159991,1723895440557,-1201.75,0.00010999,2]
[335159992,1723895440566,-1201.75,0.00010999,2]
[335159993,1723895440575,-1201.75,0.00010999,2]
[335159994,1723895440585,-1201.75,0.00010999,2]
[335159995,1723895440594,-1201.75,0.00010999,2]
[335159996,1723895440603,-1201.75,0.00010999,2]
[335159997,1723895440613,-1201.75,0.00010999,2]
[335159998,1723895440623,-1201.75,0.00010999,2]
[335159999,1723895440632,-1201.75,0.00010999,2]
[335160000,1723895440642,-1201.75082396,0.00010999,2]
[335160001,1723895440652,-898.0,0.00010999,2]
[335160002,1723895440662,-1264091.89703264,0.00011,2]
[335160003,1723895440678,-343.26358931,0.00011,2]
[335160004,1723895440690,-1886.88,0.00011,2]
[335160005,1723895440873,-7939.06706332,0.00011,2]
[335160006,1723895440884,-336.98187044,0.00011,2]
[335160007,1723895440896,-405.02610424,0.00011,2]
[335160008,1723895440907,-1709.97785,0.00011,2]
[335160009,1723895440918,-1370.37733886,0.00011,2]
[335160010,1723895440930,-500.0,0.00011,2]
[335160011,1723895440942,-681.43362743,0.00011,2]
[335160012,1723895440954,-527.39556223,0.00011,2]
[335160013,1723895440965,-14528.82706611,0.00011,2]
[335160014,1723895440984,-735.2,0.00011,2]
[335160015,1723895440995,-537.66971261,0.00011,2]
[335160016,1723895441007,-6496.46948832,0.00011,2]
[335160017,1723895441018,-511.70455756,0.00011,2]
[335160018,1723895441041,-167627.69763027,0.00011,2]
[335160019,1723895441050,-930317.6744326,0.00011,2]
[335160020,1723895441062,-1103.00150994,0.00011,2]
[335160021,1723895441072,-3536.06282993,0.00011,2]
[335160022,1723895441084,-384.644286,0.00011,2]
[335160023,1723895441096,-707.12336694,0.00011,2]
[335160034,1723895451099,295.28528212,9.962e-05,2]
[335160035,1723895484766,443.13268581,9.962e-05,2]
[335160036,1723895487285,155.0,9.962e-05,2]
[335160045,1723895843314,200.46,8.219e-05,2]
[335160090,1723896391938,190.43,8.219e-05,2]
[335160111,1723896497281,546.80856341,9.962e-05,2]
[335160122,1723896578175,160.36,9.955e-05,2]
[335160201,1723896631560,-550.0,0.0001,2]
[335160202,1723896631570,-760.53798217,0.00010026,2]
[335160203,1723896631579,-160.0,0.00010069,2]
[335160204,1723896631588,-6.24920032,0.0001014,2]
[335160205,1723896631613,-833.75079968,0.0001014,2]
[335160206,1723896631623,-268.96,0.00010165,2]
[335160207,1723896631632,-155.0,0.00010471,2]
[335160208,1723896631641,-8612.58956748,0.00010476,2]
[335160209,1723896631651,-190.43,0.00010476,2]
[335160210,1723896631660,-3235.2613,0.0001048,2]
[335160211,1723896631669,-265.97991964,0.0001048,2]
[335160212,1723896631681,-311.30388036,0.0001048,2]
[335160213,1723896631690,-2174.8637,0.0001048,2]
[335160214,1723896631699,-244.3472,0.0001048,2]
[335160215,1723896631710,-398.64791564,0.00010566,2]
[335160216,1723896631775,-534.38281471,0.00010566,2]
[335160217,1723896631784,-933.03073035,0.00010566,2]
[335160218,1723896631793,-32.58645494,0.000108,2]
[335160231,1723896637634,-474.05062188,0.000108,2]
[335160232,1723896637643,-499.99,0.000108,2]
[335160233,1723896637652,-191.22312441,0.00010818,2]
[335160234,1723896637794,-572.77687559,0.00010818,2]
[335160235,1723896637804,-422.59515761,0.0001089,2]
[335160237,1723896639746,-834.30484756,0.0001089,2]
[335160278,1723896961436,1308.94,0.0001,120]
[335160279,1723896977038,1000.0,0.00012,120]
[335160280,1723896981495,1000.0,0.00013,120]
[335160281,1723896991272,1000.0,0.00014,120]
[335160282,1723896999414,1000.0,0.00015,120]
[335160283,1723897001360,196.1,8.219e-05,2]
[335160284,1723897004279,1000.0,0.00016,120]
[335160285,1723897007111,1000.0,0.00017,120]
[335160286,1723897011991,282.66015337,0.00018,120]
[335160287,1723897012017,717.33984663,0.00018,120]
[335160289,1723897022369,1000.0,0.00019,120]
[335160290,1723897027851,1000.0,0.0002,120]
[335160291,1723897043329,152.76,9.949e-05,2]
[335160292,1723897047723,1000.0,0.0002,120]
[335160293,1723897051397,1000.0,0.0002,120]
[335160294,1723897053591,1000.0,0.0002,120]
[335160295,1723897054569,1000.0,0.0002,120]
[335160296,1723897056058,1000.0,0.0002,120]
[335160297,1723897062422,1000.0,0.0002,120]
[335160298,1723897067954,1000.0,0.0002,120]
[335160299,1723897088133,272.52,9.958e-05,2]
[335160301,1723897120466,3475.55,9.95e-05,2]
[335160307,1723897180310,3077.46963911,9.958e-05,2]
[335160308,1723897182564,448.36,9.95e-05,2]
[335160310,1723897211913,1235.62,9.975e-05,2]
[335160311,1723897331777,1274.02160133,9.975e-05,2]
[335160312,1723897350281,439.0371,9.914e-05,2]
[335160314,1723897464567,250.0,9.934e-05,2]
[335160315,1723897496304,186.29,8.219e-05,2]
[335160321,1723897565563,150.0,9.863e-05,2]
[335160326,1723897648805,245.72,9.964e-05,2]
[335160354,1723897831739,-155.0,0.00010009,2]
[335160355,1723897831750,-300.0,0.00010014,2]
[335160356,1723897831760,-970.76150624,0.00010015,2]
[335160357,1723897831771,-10410.40849376,0.00010015,2]
[335160358,1723897831780,-1000.0,0.00010151,2]
[335160359,1723897831790,-186.29,0.00010474,2]
[335160360,1723897831799,-49119.02833667,0.00010564,2]
[335160361,1723897831810,-150.417918,0.00010672,2]
[335160362,1723897831820,-213.4549,0.0001078,2]
[335160363,1723897831830,-574.18,0.0001078,2]
[335160364,1723897831839,-5501.5662,0.0001078,2]
[335160365,1723897831849,-457.94,0.0001078,2]
[335160366,1723897831859,-2380.42,0.0001078,2]
[335160367,1723897831868,-298.46,0.0001078,2]
[335160368,1723897831879,-150.0,0.00010799,2]
[335160369,1723897831889,-560.2683,0.000108,2]
[335160370,1723897831899,-2087.3055,0.000108,2]
[335160371,1723897831908,-6498.0575,0.000108,2]
[335160372,1723897831917,-698.37,0.000108,2]
[335160373,1723897831926,-428.22,0.000108,2]
[335160374,1723897831935,-421.26,0.000108,2]
[335160375,1723897831945,-421.26,0.000108,2]
[335160376,1723897831954,-420.63,0.000108,2]
[335160377,1723897831963,-499.99,0.000108,2]
[335160379,1723897831972,-659.641,0.00010838,2]
[335160381,1723897831981,-8102.1069,0.00010879,2]
[335160383,1723897831990,-14079.9361,0.0001088,2]
[335160385,1723897831999,-1388.518,0.0001088,2]
[335160386,1723897832009,-1000.0,0.0001088,2]
[335160388,1723897832018,-1696.2184,0.0001088,2]
[335160390,1723897832027,-7500.0,0.0001088,2]
[335160392,1723897832036,-327.95529513,0.0001088,2]
[335160393,1723897832045,-613.91486337,0.0001088,2]
[335160395,1723897832054,-613.91486336,0.00010889,2]
[335160397,1723897832065,-1975.05457,0.0001089,2]
[335160399,1723897832074,-223.21652696,0.00010898,2]
[335160401,1723897832083,-613.91486336,0.00010898,2]
[335160402,1723897832092,-13539.89727666,0.00010899,2]
[335160404,1723897832101,-2000.0,0.000109,2]
[335160406,1723897832110,-1671.69,0.000109,2]
[335160408,1723897832119,-13539.89727666,0.000109,2]
[335160410,1723897832128,-184.29002284,0.000109,2]
[335160412,1723897832137,-327.95529513,0.000109,2]
[335160414,1723897832146,-250.0,0.00010959,2]
[335160416,1723897832156,-150.0,0.00010959,2]
[335160417,1723897832165,-1500.0,0.00010959,2]
[335160419,1723897832175,-499.95,0.00010959,2]
[335160421,1723897832184,-388.30444484,0.00010973,2]
[335160423,1723897832193,-160.95450725,0.00010977,2]
[335160425,1723897832202,-643.818029,0.00010977,2]
[335160427,1723897832211,-184.83520388,0.00010979,2]
[335160429,1723897832221,-972.84,0.00010979,2]
[335160431,1723897832230,-972.84,0.00010979,2]
[335160432,1723897832241,-972.84,0.00010979,2]
[335160433,1723897832250,-972.84,0.00010979,2]
[335160434,1723897832259,-972.84,0.00010979,2]
[335160435,1723897832268,-972.84,0.00010979,2]
[335160436,1723897832277,-972.84,0.00010979,2]
[335160437,1723897832286,-972.84,0.00010979,2]
[335160438,1723897832295,-972.84,0.00010979,2]
[335160439,1723897832305,-972.84,0.00010979,2]
[335160440,1723897832315,-972.84,0.00010979,2]
[335160441,1723897832324,-972.84,0.00010979,2]
[335160442,1723897832333,-972.84,0.00010979,2]
[335160443,1723897832342,-972.84,0.00010979,2]
[335160444,1723897832351,-968.0,0.0001098,2]
[335160445,1723897832360,-54182.26589859,0.0001098,2]
[335160446,1723897832372,-2084.775,0.0001098,2]
[335160447,1723897832398,-500.0,0.00010958,2]
[335160448,1723897832408,-951.24090158,0.0001098,2]
[335160449,1723897832420,-847.98924368,0.0001098,2]
[335160450,1723897832441,-500.0,0.00010958,2]
[335160451,1723897832450,-500.0,0.00010958,2]
[335160452,1723897832459,-133.16129937,0.0001098,2]
[335160453,1723897832470,-1082.8218589,0.0001098,2]
[335160454,1723897832495,-500.0,0.00010958,2]
[335160455,1723897832505,-500.0,0.00010958,2]
[335160456,1723897832514,-6136.83739313,0.0001098,2]
[335160460,1723897838121,-255.53745705,0.00010958,2]
[335160465,1723897839927,-244.46254295,0.00010958,2]
[335160466,1723897839936,-500.0,0.00010958,2]
[335160467,1723897839945,-146.45665835,0.00010958,2]
[335160468,1723897840151,155.0,9.999e-05,2]
[335160479,1723897842838,-353.54334165,0.00010958,2]
[335160480,1723897842847,-433.45665835,0.00010958,2]
[335160499,1723897845859,-66.54334165,0.00010958,2]
[335160500,1723897845868,-500.0,0.00010958,2]
[335160501,1723897845877,-500.0,0.00010958,2]
[335160502,1723897845886,-139.55483662,0.00010958,2]
[335160503,1723897876412,200.0,9.9e-05,3]
[335160504,1723897878530,500.0,0.0001,3]
[335160513,1723897917930,156.0,0.0001,2]
[335160534,1723898131954,167.66,8.219e-05,2]
[335160537,1723898153583,203.04,9.939e-05,2]
[335160549,1723898637886,159.27,8.219e-05,2]
[335160552,1723898756252,162.81,9.961e-05,2]
[335160556,1723898838037,400.0,9.9e-05,3]
[335160566,1723898891515,1000.0,9.882e-05,2]
[335160571,1723899009991,-6.76853278,0.0001,2]
[335160572,1723899010016,-182.21208699,0.0001,2]
[335160573,1723899010040,-276.38,0.0001,2]
[335160574,1723899010064,-550.0,0.0001,2]
[335160575,1723899010093,-900.0,0.0001,3]
[335160577,1723899028549,-889.20938023,0.000101,3]
[335160583,1723899031949,-410.79061977,0.000101,3]
[335160585,1723899031958,-196.39464059,0.000102,3]
[335160597,1723899032112,-460.07,0.000102,3]
[335160599,1723899032124,-339.60088117,0.000102,3]
[335160611,1723899032226,-446.45853724,0.000102,3]
[335160626,1723899038237,-1.73630395,0.000102,3]
[335160627,1723899038258,-355.73963705,0.000102,3]
[335160628,1723899038268,-300.0,0.00010299,2]
[335160629,1723899038279,-1627.18576051,0.000103,3]
[335160630,1723899038290,-559.39085994,0.000103,3]
[335160635,1723899040146,-113.42337955,0.000103,3]
[335160636,1723899040156,-150.0,0.000104,2]
[335160637,1723899040167,-150.0,0.000104,2]
[335160638,1723899040176,-311.57662045,0.000104,3]
[335160639,1723899040363,-88.42337955,0.000104,3]
[335160640,1723899040373,-159.27,0.00010471,2]
[335160641,1723899040383,-150.0,0.000105,2]
[335160642,1723899040392,-1000.0,0.000105,2]
[335160643,1723899040401,-400.0,0.000105,3]
[335160644,1723899040410,-400.0,0.000106,3]
[335160645,1723899040420,-111.93430201,0.000107,3]
[335160670,1723899042997,-288.06569799,0.000107,3]
[335160671,1723899043006,-1000.0,0.000108,3]
[335160672,1723899043016,-426.33452023,0.00010861,2]
[335160673,1723899043026,-155.0,0.00010862,2]
[335160674,1723899043035,-782.83094332,0.0001087,2]
[335160675,1723899043044,-152.3369562,0.0001087,2]
[335160676,1723899043107,-1493.5418438,0.0001087,2]
[335160677,1723899043118,-150.0,0.00010878,2]
[335160678,1723899043129,-4361.47454483,0.00010879,2]
[335160701,1723899046069,-812.74759037,0.00010879,2]
[335160702,1723899046180,-272.87671771,0.00010879,2]
[335160703,1723899046236,-534.99602701,0.00010879,2]
[335160704,1723899046294,-2224.00342008,0.00010879,2]
[335160705,1723899046303,-150.0,0.00010879,2]
[335160706,1723899046312,-553.52980373,0.0001088,2]
[335160707,1723899046323,-1874.06416438,0.0001088,2]
[335160708,1723899046334,-2374.92159795,0.0001088,2]
[335160709,1723899046354,-3600.0,0.0001088,2]
[335160733,1723899057358,500.0,9.9e-05,3]
[335160739,1723899183244,150.88,8.219e-05,2]
[335160744,1723899364501,200.0,9.941e-05,2]
[335160745,1723899370480,229.14,9.941e-05,2]
[335160751,1723899681713,150.88,8.219e-05,2]
[335160755,1723899828584,361.29910214,9.943e-05,2]
[335160756,1723899900602,840.0,9.885e-05,2]
[335160757,1723899903163,216.1,9.885e-05,2]
[335160767,1723900026845,400.0,9.9e-05,3]
[335160786,1723900199092,150.88,8.219e-05,2]
[335160793,1723900232110,-900.0,0.0001,3]
[335160794,1723900232120,-1400.0,0.000101,3]
[335160795,1723900232130,-1900.0,0.000102,3]
[335160796,1723900232139,-1918.529477,0.000103,3]
[335160797,1723900232221,-481.470523,0.000103,3]
[335160798,1723900232231,-150.0,0.00010399,2]
[335160799,1723900232240,-288.58020339,0.000104,2]
[335160800,1723900232252,-1900.0,0.000104,2]
[335160833,1723900238108,-310.60371494,0.000104,2]
[335160834,1723900238219,-598.6169871,0.000104,2]
[335160835,1723900238327,-403.19837403,0.000104,2]
[335160838,1723900240296,-1141.79792795,0.000104,2]
[335160839,1723900240307,-890.58412644,0.000104,2]
[335160840,1723900240409,-950.90019971,0.000104,2]
[335160841,1723900240591,-869.59654346,0.000104,2]
[335160869,1723900243361,-594.76,0.000104,2]
[335160871,1723900244911,-29841.56492298,0.000104,2]
[335160872,1723900244920,-400.0,0.000104,3]
[335160873,1723900244930,-5606.99159899,0.00010499,2]
[335160874,1723900244939,-150.0,0.000105,2]
[335160875,1723900244948,-150.0,0.000105,2]
[335160876,1723900244958,-150.0,0.000105,2]
[335160877,1723900244972,-150.0,0.000105,2]
[335160878,1723900244987,-300.0,0.000105,2]
[335160879,1723900244997,-31349.30152593,0.000105,2]
[335160885,1723900246220,-10455.79454278,0.000105,2]
[335160902,1723900359308,173.46,9.93e-05,2]
[335160910,1723900441284,328.0,9.91e-05,2]
[335160911,1723900645803,155.0,9.943e-05,2]
[335160912,1723900655793,155.0,9.943e-05,2]
[335160918,1723900735321,150.88,8.219e-05,2]
[335160922,1723900839281,173.5,9.857e-05,2]
[335160923,1723900998173,737.6,9.817e-05,2]
[335160935,1723901247488,150.88,8.219e-05,2]
[335160945,1723901391622,218.01,9.809e-05,2]
[335160954,1723901432251,-365.50885499,9.988e-05,2]
[335160956,1723901432263,-300.0,9.999e-05,2]
[335160957,1723901432273,-300.0,9.999e-05,2]
[335160959,1723901432282,-550.0,0.0001,2]
[335160961,1723901432292,-4130.79,0.0001,2]
[335160962,1723901432301,-1000.0,0.0001,2]
[335160964,1723901432311,-192.14261377,0.0001,2]
[335160965,1723901432320,-4018.27120797,0.000104,2]
[335160967,1723901432331,-161151.66319669,0.000104,2]
[335160969,1723901432341,-207.2180428,0.000104,2]
[335160971,1723901432350,-327.95529512,0.000104,2]
[335160972,1723901432360,-4513.29909223,0.000104,2]
[335160974,1723901432370,-357.73093582,0.00010471,2]
[335160976,1723901432379,-1441.74024221,0.00010471,2]
[335160978,1723901432389,-52999.33931439,0.0001048,2]
[335160979,1723901432400,-955.65762198,0.0001048,2]
[335160981,1723901432418,-860.72027175,9.988e-05,2]
[335160982,1723901432427,-129.86089878,0.0001048,2]
[335160983,1723901432439,-732.10144154,0.0001048,2]
[335160984,1723901432450,-1181.26213134,0.0001048,2]
[335160985,1723901432461,-2871.78515676,0.0001048,2]
[335160986,1723901432474,-1353.76120749,0.0001048,2]
[335160987,1723901432485,-1533.16988502,0.0001048,2]
[335160988,1723901432496,-10808.08059513,0.0001048,2]
[335160989,1723901432508,-676.1,0.0001048,2]
[335160990,1723901432524,-4018.61914153,0.0001048,2]
[335160991,1723901432536,-799.720536,0.0001048,2]
[335160992,1723901432547,-1386.16050684,0.0001048,2]
[335160998,1723901438295,-202.36856443,0.0001039,2]
[335160999,1723901438304,-2433.75689442,0.0001048,2]
[335161000,1723901438316,-264.99697796,0.0001048,2]
[335161001,1723901438519,-547789.4742037,0.0001048,2]
[335161041,1723901440433,-1488.0,0.0001048,2]
[335161042,1723901440445,-654.14500002,0.0001048,2]
[335161046,1723901443360,-594.87,0.0001048,2]
[335161053,1723901444188,-1178.75581114,0.0001048,2]
[335161058,1723901444856,-24146.61206019,0.0001048,2]
[335161107,1723901468311,409.92,9.823e-05,2]
[335161108,1723901469852,400.0,9.6e-05,3]
[335161109,1723901472157,800.0,9.7e-05,3]
[335161110,1723901474134,1200.0,9.8e-05,3]
[335161111,1723901476239,1700.0,9.9e-05,3]
[335161121,1723901767788,357.4813523,9.943e-05,2]
[335161122,1723901772370,155.0,9.943e-05,2]
[335161123,1723901798531,150.88,8.219e-05,2]
[335161124,1723901810972,153.76,7.699e-05,2]
[335161125,1723901818815,236.36319912,9.943e-05,2]
[335161126,1723901820393,155.0,9.943e-05,2]
[335161128,1723901891348,217.06,9.662e-05,2]
[335161129,1723902011385,672.06,9.627e-05,2]
[335161132,1723902122397,155.0,9.943e-05,2]
[335161133,1723902132295,3596.40605365,9.9e-05,2]
[335161134,1723902283056,150.88,8.219e-05,2]
[335161142,1723902419293,182.18,9.665e-05,2]
[335161143,1723902424456,193.84378897,9.962e-05,2]
[335161144,1723902425756,370.75591567,9.943e-05,2]
[335161155,1723902459047,16236.67272369,9.962e-05,2]
[335161156,1723902515113,5395.45,9.693e-05,2]
[335161157,1723902528937,657.65,9.68e-05,2]
[335161167,1723902555965,462.35,9.668e-05,2]
[335161172,1723902609990,1636.1401,9.9e-05,2]
[335161174,1723902631408,-550.0,0.0001,2]
[335161175,1723902631418,-2273.25931389,0.0001,2]
[335161176,1723902631431,-1603.9113271,0.0001,2]
[335161177,1723902631442,-653.9611448,0.0001,2]
[335161178,1723902631453,-7722.25397426,0.00010379,2]
[335161179,1723902631463,-150.0,0.00010379,2]
[335161180,1723902631474,-300.0,0.00010379,2]
[335161181,1723902631485,-300.0,0.00010379,2]
[335161182,1723902631495,-183.84718344,0.0001038,2]
[335161183,1723902631506,-171.44570036,0.0001038,2]
[335161184,1723902631516,-2500.0,0.0001038,2]
[335161193,1723902631811,-1371.56567,0.0001038,2]
[335161196,1723902631829,-1371.56568,0.0001038,2]
[335161198,1723902631839,-152.67384192,0.0001039,2]
[335161200,1723902631849,-3468.44,0.00010469,2]
[335161202,1723902631859,-150.99,0.00010469,2]
[335161203,1723902631869,-6046.84,0.0001047,2]
[335161204,1723902631879,-663.76147816,0.0001047,2]
[335161205,1723902631891,-605.49980827,0.0001047,2]
[335161206,1723902631903,-447.53187127,0.0001047,2]
[335161207,1723902631914,-888.19225689,0.0001047,2]
[335161208,1723902631924,-826.39349148,0.0001047,2]
[335161209,1723902631935,-1778.59192311,0.0001047,2]
[335161210,1723902631945,-10747.50633908,0.00010477,2]
[335161211,1723902631957,-204.51366092,0.00010477,2]
[335161212,1723902631967,-110.48633908,0.00010477,2]
[335161213,1723902631978,-389.50366092,0.00010477,2]
[335161214,1723902631988,-1517.42,0.00010477,2]
[335161215,1723902631997,-299.99,0.00010477,2]
[335161216,1723902632007,-167.25085883,0.00010477,2]
[335161217,1723902632016,-1609.64,0.00010479,2]
[335161218,1723902632025,-150.99,0.00010479,2]
[335161219,1723902632035,-2366.75486309,0.0001048,2]
[335161220,1723902632047,-4036.74748476,0.0001048,2]
[335161221,1723902632058,-490.16320084,0.0001048,2]
[335161222,1723902632070,-4745.52397969,0.0001048,2]
[335161223,1723902632082,-603.91888408,0.0001048,2]
[335161224,1723902632098,-1381.95190557,0.0001048,2]
[335161225,1723902632110,-431.18512968,0.0001048,2]
[335161226,1723902632121,-569.99999994,0.0001048,2]
[335161227,1723902632132,-351.899999,0.0001048,2]
[335161228,1723902632144,-15127.15668226,0.0001048,2]
[335161229,1723902632155,-11281.16247119,0.0001048,2]
[335161230,1723902632167,-7800.69533894,0.0001048,2]
[335161231,1723902632179,-1339.32568212,0.0001048,2]
[335161232,1723902632190,-4114.08125678,0.0001048,2]
[335161233,1723902632210,-909.30987856,0.0001048,2]
[335161234,1723902632221,-636.79253411,0.0001048,2]
[335161235,1723902632233,-501.23538144,0.0001048,2]
[335161236,1723902632244,-2903.71306986,0.0001048,2]
[335161237,1723902632256,-3421.55845167,0.0001048,2]
[335161238,1723902632267,-725.47357814,0.0001048,2]
[335161239,1723902632279,-474.46635641,0.0001048,2]
[335161241,1723902637424,-28740.04165578,0.0001048,2]
[335161242,1723902637436,-785.23100942,0.0001048,2]
[335161243,1723902637453,-7773.77163007,0.0001048,2]
[335161244,1723902637465,-845.302431,0.0001048,2]
[335161245,1723902637478,-60200.48900671,0.0001048,2]
[335161246,1723902637490,-315.94706267,0.0001048,2]
[335161247,1723902637501,-509.16789362,0.0001048,2]
[335161248,1723902637513,-1019.83248483,0.0001048,2]
[335161249,1723902637552,-1055.8051132,0.0001048,2]
[335161250,1723902637564,-5340.98495427,0.0001048,2]
[335161251,1723902637576,-338.26352533,0.0001048,2]
[335161252,1723902637587,-462.45588772,0.0001048,2]
[335161253,1723902637599,-264.54053448,0.0001048,2]
[335161254,1723902637611,-7214.73959698,0.0001048,2]
[335161255,1723902637622,-1145.08013776,0.0001048,2]
[335161256,1723902637633,-14798.35396183,0.0001048,2]
[335161257,1723902637645,-11216.25702667,0.0001048,2]
[335161258,1723902637660,-20570.8866,0.0001048,2]
[335161259,1723902637672,-820878.22052513,0.0001048,2]
[335161260,1723902637684,-188873.86284318,0.0001048,2]
[335161261,1723902637696,-5400.0,0.0001048,2]
[335161262,1723902637709,-6470.20833297,0.0001048,2]
[335161263,1723902637720,-6525.06999584,0.0001048,2]
[335161264,1723902637733,-421.399227,0.0001048,2]
[335161265,1723902637744,-6016.27157419,0.0001048,2]
[335161266,1723902637755,-2506.77543946,0.0001048,2]
[335161267,1723902637767,-2604.69232305,0.0001048,2]
[335161268,1723902637780,-7969.17193469,0.0001048,2]
[335161269,1723902637792,-3458.69314524,0.0001048,2]
[335161271,1723902639567,-578.06080476,0.0001048,2]
[335161272,1723902639683,-476.45777715,0.0001048,2]
[335161273,1723902639746,-471710.47002028,0.0001048,2]
[335161274,1723902639757,-1311.93667583,0.0001048,2]
[335161275,1723902639769,-844.59940527,0.0001048,2]
[335161276,1723902639781,-2303.5,0.0001048,2]